fUSD/lending_fUSD_20240525
["ID","MTS","AMOUNT","RATE_DAILY","PERIOD"]
[327927273,1716651034068,-23451.97719288,0.00026,5]
[327927274,1716651034077,-150.0,0.00026018,2]
[327927275,1716651034088,-286.59091737,0.0002611,2]
[327927276,1716651034098,-4459.65013104,0.00026133,2]
[327927277,1716651034108,-150.0,0.0002618,2]
[327927278,1716651034118,-150.0,0.0002618,2]
[327927279,1716651034127,-150.0,0.00026234,2]
[327927280,1716651034137,-150.0,0.00026265,2]
[327927281,1716651034147,-150.0,0.00026268,2]
[327927282,1716651034156,-286.59091737,0.0002631,2]
[327927283,1716651034166,-150.0,0.00026317,2]
[327927284,1716651034175,-150.0,0.00026418,2]
[327927285,1716651034185,-152.42219695,0.00026438,2]
[327927286,1716651034194,-152.42219695,0.00026458,2]
[327927287,1716651034203,-168.52201598,0.00026459,2]
[327927288,1716651034213,-150.0,0.00026459,2]
[327927289,1716651034222,-155.64331356,0.00026575,2]
[327927290,1716651034231,-150.0,0.00026591,2]
[327927291,1716651034241,-165.17,0.00026655,2]
[327927292,1716651034252,-286.59091737,0.00026689,2]
[327927293,1716651034262,-150.0,0.00026729,2]
[327927294,1716651034272,-152.64473612,0.00026767,2]
[327927295,1716651034282,-286.59091737,0.0002688,2]
[327927296,1716651034294,-1071.54502785,0.000269,7]
[327927297,1716651034529,-322.94582393,0.0002691,2]
[327927298,1716651034543,-150.0,0.00026915,2]
[327927299,1716651034552,-181.41452612,0.00026937,2]
[327927300,1716651034564,-1000.0,0.00026938,2]
[327927301,1716651034573,-286.59091737,0.00026939,2]
[327927302,1716651034583,-1200.0,0.00027,2]
[327927303,1716651034592,-3487.17881207,0.00027,3]
[327927304,1716651034602,-2000.0,0.00027,2]
[327927305,1716651034611,-3844.5913,0.0002701,2]
[327927306,1716651034620,-150.0,0.00027014,2]
[327927307,1716651034630,-153.10769664,0.00027106,2]
[327927308,1716651034639,-181.41452612,0.0002715,2]
[327927309,1716651034648,-150.0,0.00027171,2]
[327927310,1716651034661,-153.10769664,0.00027229,2]
[327927311,1716651034670,-152.64473612,0.0002724,2]
[327927312,1716651034680,-150.0,0.00027272,2]
[327927313,1716651034689,-150.0,0.00027294,2]
[327927314,1716651034701,-152.64473612,0.00027297,2]
[327927315,1716651034710,-150.0,0.00027339,2]
[327927316,1716651034720,-150.0,0.0002737,2]
[327927317,1716651034731,-184.92665725,0.00027408,2]
[327927318,1716651034741,-1053.45234885,0.00027415,2]
[327927319,1716651034752,-150.0,0.0002742,2]
[327927320,1716651034762,-8269.83523376,0.00027444,2]
[327927321,1716651034771,-168.52201598,0.00027448,2]
[327927322,1716651034780,-154.92674634,0.00027476,2]
[327927323,1716651034792,-257.15428816,0.00027478,2]
[327927324,1716651034800,-796.44149374,0.00027478,2]
[327927325,1716651034810,-175.08752518,0.00027478,2]
[327927326,1716651034819,-150.26,0.0002749,2]
[327927327,1716651034828,-150.26,0.0002749,2]
[327927328,1716651034838,-150.26,0.0002749,2]
[327927329,1716651034847,-150.26,0.0002749,2]
[327927330,1716651034856,-150.26,0.0002749,2]
[327927331,1716651034866,-150.26,0.0002749,2]
[327927332,1716651034875,-150.26,0.0002749,2]
[327927333,1716651034884,-150.26,0.0002749,2]
[327927334,1716651034894,-198.88015175,0.0002749,2]
[327927335,1716651034903,-150.0,0.00027499,2]
[327927336,1716651034913,-150.0,0.00027499,2]
[327927337,1716651034922,-150.0,0.00027499,2]
[327927338,1716651034931,-150.0,0.00027499,2]
[327927339,1716651034941,-396451.337113,0.000275,5]
[327927341,1716651038009,-7820.82366717,0.000275,2]
[327927343,1716651038021,-1527.20049393,0.000275,2]
[327927344,1716651038398,-7912.71452,0.000275,2]
[327927357,1716651041292,-851.36164464,0.000275,2]
[327927358,1716651041421,-207.79137545,0.00027499,2]
[327927359,1716651041430,-883.32062455,0.000275,2]
[327927360,1716651042218,-453.58615877,0.00027499,2]
[327927361,1716651042228,-141129.8679992,0.000275,2]
[327927362,1716651042238,-182636.37533127,0.000275,5]
[327927363,1716651042250,-2506.03909275,0.000275,5]
[327927364,1716651042261,-1146.69328221,0.000275,5]
[327927365,1716651042554,-1273.45638612,0.000275,5]
[327927387,1716651043109,-794.21166416,0.00027499,2]
[327927389,1716651043118,-3703.15153584,0.000275,5]
[327927390,1716651043477,-8012.68999116,0.000275,5]
[327927404,1716651046390,-1629.22084842,0.00026589,2]
[327927405,1716651046402,-2253.96911661,0.00026589,2]
[327927406,1716651046412,-2003.96816218,0.00027498,2]
[327927407,1716651046422,-1227.82126936,0.00027498,2]
[327927408,1716651046430,-162829.19988776,0.000275,5]
[327927483,1716652232024,-155.0,0.00013972,2]
[327927484,1716652232039,-157.65,0.00013973,2]
[327927485,1716652232048,-390.68,0.00015299,2]
[327927486,1716652232341,-228.63575855,0.00015299,2]
[327927487,1716652232351,-1426.85767627,0.000153,2]
[327927488,1716652232376,-5135.14232373,0.000153,2]
[327927489,1716652232386,-889.0,0.000153,2]
[327927490,1716652232400,-5083.27432854,0.00017,2]
[327927491,1716652232410,-804.30557965,0.00018,2]
[327927492,1716652232420,-9999.99,0.0001898,2]
[327927493,1716652232429,-151.0,0.00018981,3]
[327927494,1716652232439,-155.0,0.0002,2]
[327927495,1716652232448,-155.0,0.00020086,2]
[327927496,1716652232667,-158.57592294,0.00020086,2]
[327927497,1716652232678,-155.0,0.00020087,2]
[327927498,1716652232688,-155.45,0.00020091,2]
[327927499,1716652232697,-1050.0,0.00021,2]
[327927500,1716652232706,-157.65,0.00021209,2]
[327927501,1716652232716,-5514.19481281,0.00021599,2]
[327927502,1716652232725,-19636.47058133,0.000216,2]
[327927503,1716652232734,-500.0,0.00021847,2]
[327927504,1716652232744,-250.0,0.00021879,2]
[327927505,1716652232753,-200.0,0.00021879,2]
[327927506,1716652232762,-355.68,0.00021918,2]
[327927507,1716652232772,-1808.5,0.00021924,3]
[327927508,1716652232782,-250.0,0.00021973,2]
[327927509,1716652232791,-3883.18996503,0.00021982,2]
[327927510,1716652232801,-1000.0,0.00021986,2]
[327927511,1716652232810,-172.14,0.00021994,2]
[327927512,1716652232819,-9159.6726668,0.00022,2]
[327927513,1716652232829,-332.16,0.00022036,2]
[327927514,1716652232838,-400.0,0.00022036,2]
[327927515,1716652232849,-242.37,0.0002208,2]
[327927516,1716652232858,-407.78,0.00022137,2]
[327927517,1716652232868,-600.0,0.00022159,2]
[327927518,1716652232877,-182.81326786,0.00022172,2]
[327927519,1716652232887,-182.81326786,0.00022423,2]
[327927520,1716652232897,-166.66666667,0.00022661,2]
[327927521,1716652232907,-155.45,0.0002278,2]
[327927522,1716652232916,-154.37778061,0.00022818,2]
[327927523,1716652232925,-152.31333537,0.00022931,2]
[327927524,1716652232934,-1100.0,0.00023,2]
[327927525,1716652232944,-152.31333537,0.00023005,2]
[327927526,1716652232953,-182.81326786,0.00023186,2]
[327927527,1716652232963,-151.18420905,0.00023234,2]
[327927528,1716652232973,-152.42219696,0.00023333,2]
[327927529,1716652232982,-151.18420905,0.00023392,2]
[327927530,1716652232991,-152.42219696,0.00023405,2]
[327927531,1716652233000,-180.23656713,0.00023416,2]
[327927532,1716652233009,-151.18420905,0.00023535,2]
[327927533,1716652233018,-152.31333537,0.00023576,2]
[327927534,1716652233028,-182.81326786,0.00023588,2]
[327927535,1716652233037,-157.47813498,0.00023625,2]
[327927536,1716652233050,-154.03762695,0.00023642,2]
[327927537,1716652233059,-182.81326786,0.00023749,2]
[327927538,1716652233068,-151.18420905,0.00023761,2]
[327927539,1716652233078,-165.43186829,0.00023883,2]
[327927540,1716652233087,-166.66666668,0.00024176,2]
[327927541,1716652233099,-151.18420905,0.00024248,2]
[327927542,1716652233108,-155.72985658,0.00024275,2]
[327927543,1716652233117,-203.0,0.0002433,2]
[327927544,1716652233126,-156.5611123,0.00024375,2]
[327927545,1716652233135,-155.72985658,0.00024479,2]
[327927546,1716652233145,-173.75032449,0.0002477,2]
[327927547,1716652233154,-332.16,0.00024776,2]
[327927548,1716652233164,-400.0,0.00024791,2]
[327927549,1716652233173,-182.81326786,0.00024821,2]
[327927550,1716652233183,-203.0,0.0002485,2]
[327927551,1716652233192,-182.81326786,0.00024869,2]
[327927552,1716652233202,-3872.7161,0.000249,2]
[327927553,1716652233211,-8875.3876,0.000249,2]
[327927554,1716652233221,-1000.0,0.000249,2]
[327927555,1716652233230,-10625.47200842,0.000249,2]
[327927556,1716652233242,-830.42158206,0.000249,2]
[327927557,1716652233254,-935.11650011,0.000249,2]
[327927558,1716652233273,-33756.46155901,0.000249,2]
[327927559,1716652233283,-168.52201598,0.000249,2]
[327927560,1716652233293,-323.27907359,0.000249,2]
[327927561,1716652233302,-150.0,0.00024916,2]
[327927562,1716652233311,-150.0,0.00024926,2]
[327927563,1716652233321,-600.0,0.00024929,2]
[327927564,1716652233330,-185.30785576,0.0002499,2]
[327927565,1716652233340,-151.03,0.0002499,2]
[327927566,1716652233350,-500.0,0.00024999,2]
[327927567,1716652233359,-192.86791098,0.00024999,2]
[327927568,1716652233368,-500.0,0.00024999,2]
[327927569,1716652233378,-2064.77555518,0.00025,2]
[327927570,1716652233389,-845.39999995,0.00025,2]
[327927571,1716652233401,-700.88581,0.00025,2]
[327927585,1716652238285,-6834.26689138,0.00025,2]
[327927586,1716652238296,-3637.20517682,0.00025,2]
[327927587,1716652238397,-9778.54602,0.00025,2]
[327927588,1716652238409,-6539.39005,0.00025,2]
[327927589,1716652238455,-2244.09711447,0.00025,2]
[327927590,1716652238467,-1972.39943278,0.00025,2]
[327927598,1716652240981,-90903.31256762,0.00025,2]
[327927599,1716652240993,-373990.65876656,0.00025,2]
[327927600,1716652241095,-784.84155209,0.00025,2]
[327927601,1716652241110,-681.67,0.00025,2]
[327927602,1716652241158,-152251.208916,0.00025,2]
[327927636,1716652243073,-5908.79098949,0.00025,2]
[327927638,1716652243488,-1394.90965153,0.00025,2]
[327927648,1716652246231,-477.28448816,0.00024999,2]
[327927649,1716652246241,-204.91551184,0.00024999,2]
[327927650,1716652246289,-66.39840356,0.00024999,2]
[327927651,1716652246299,-212.86339721,0.00024999,2]
[327927652,1716652246308,-5850.24819922,0.00024999,2]
[327927653,1716652246403,-93.68154606,0.00024999,2]
[327927654,1716652246413,-68053.29895394,0.00025,2]
[327927655,1716652246424,-2507.42643522,0.00025,2]
[327927758,1716653432243,-155.0,0.00013859,2]
[327927759,1716653432254,-173.61802843,0.00013859,2]
[327927760,1716653432264,-534.9432489,0.0001386,2]
[327927761,1716653432273,-152.82,0.00013973,2]
[327927762,1716653432282,-158.3,0.00013973,2]
[327927763,1716653432291,-5083.27432854,0.00017,2]
[327927764,1716653432301,-619.31575855,0.00017258,2]
[327927765,1716653432310,-357.0,0.00017538,2]
[327927766,1716653432320,-199.59753316,0.00017807,2]
[327927767,1716653432329,-879.73,0.00017807,2]
[327927768,1716653432338,-499.99,0.00017807,2]
[327927769,1716653432347,-316.06,0.00017807,2]
[327927770,1716653432356,-4688.31,0.00017807,2]
[327927771,1716653432366,-6198.11174966,0.00017808,2]
[327927772,1716653432382,-9087.02447367,0.00017808,2]
[327927773,1716653432421,-256.269,0.00017808,2]
[327927774,1716653432465,-78373.14477667,0.00017808,2]
[327927775,1716653432475,-3883.18996503,0.000192,2]
[327927776,1716653432485,-150.99,0.0001945,2]
[327927777,1716653432495,-848.18,0.00019451,2]
[327927778,1716653432504,-1298.04,0.00019452,2]
[327927779,1716653432514,-160.25,0.00019734,2]
[327927780,1716653432523,-357.0,0.00020538,2]
[327927781,1716653432533,-1050.0,0.00021,2]
[327927782,1716653432544,-5514.19481281,0.00021,2]
[327927783,1716653432553,-792.8,0.000214,2]
[327927784,1716653432562,-1193.93,0.000214,2]
[327927785,1716653432572,-2005.5,0.00021414,2]
[327927786,1716653432582,-1103.75,0.00021497,2]
[327927788,1716653432591,-3412.19,0.0002156,2]
[327927790,1716653432600,-250.0,0.00021567,2]
[327927792,1716653432609,-200.0,0.00021575,2]
[327927793,1716653432620,-1000.0,0.00021578,2]
[327927795,1716653432628,-199.35,0.00021587,2]
[327927797,1716653432638,-500.0,0.00021619,2]
[327927799,1716653432647,-158.22,0.00021658,2]
[327927800,1716653432658,-1167.86,0.00021668,2]
[327927801,1716653432668,-250.0,0.00021688,2]
[327927818,1716653432892,-210.2,0.00021689,2]
[327927819,1716653432902,-9168.96,0.00021782,2]
[327927820,1716653432911,-8695.1895219,0.00021796,2]
[327927824,1716653438214,-756.96152999,0.00021796,2]
[327927825,1716653438264,-352.31300982,0.00021796,2]
[327927826,1716653438277,-758.52558903,0.00021796,2]
[327927838,1716653440634,-6525.52034926,0.00021796,2]
[327927839,1716653440645,-158.22,0.00021884,2]
[327927840,1716653440655,-501.40138123,0.000219,2]
[327927841,1716653440665,-407.21,0.00021918,2]
[327927842,1716653440674,-198.81,0.00021918,2]
[327927843,1716653440684,-2000.0,0.00021918,2]
[327927844,1716653440693,-172.14,0.00021918,2]
[327927845,1716653440703,-250.0,0.00021918,2]
[327927846,1716653440713,-160.25,0.00021998,2]
[327927847,1716653440722,-157.47813498,0.00022013,2]
[327927848,1716653440731,-151.19042308,0.0002203,2]
[327927849,1716653440740,-155.47890587,0.00022041,2]
[327927850,1716653440749,-155.16811639,0.00022108,2]
[327927851,1716653440758,-158.22,0.00022109,2]
[327927852,1716653440767,-158.22,0.00022335,2]
[327927853,1716653440777,-155.15347713,0.000224,2]
[327927854,1716653440787,-158.22,0.00022561,2]
[327927855,1716653440796,-152.82,0.00022759,2]
[327927856,1716653440806,-158.22,0.00022786,2]
[327927857,1716653440815,-151.19042308,0.00022923,2]
[327927858,1716653440825,-152.24554885,0.00022961,2]
[327927859,1716653440835,-1100.0,0.00023,2]
[327927860,1716653440845,-166.66666668,0.00023041,2]
[327927861,1716653440855,-151.19042308,0.00023326,2]
[327927862,1716653440865,-167.0,0.00023393,2]
[327927863,1716653440876,-357.0,0.00023538,2]
[327927864,1716653440886,-154.37778061,0.00023644,2]
[327927865,1716653440896,-154.37778061,0.00023925,2]
[327927866,1716653440905,-152.79444416,0.00024037,2]
[327927867,1716653440915,-159.08274939,0.00024058,2]
[327927868,1716653440924,-1193.93,0.0002414,2]
[327927869,1716653440934,-166.66666665,0.00024145,2]
[327927870,1716653440943,-156.5611123,0.00024182,2]
[327927871,1716653440953,-151.19042308,0.00024213,2]
[327927872,1716653440962,-154.36462273,0.00024222,2]
[327927873,1716653440971,-160.25,0.00024262,2]
[327927874,1716653440981,-1000.0,0.00024275,2]
[327927875,1716653440991,-150.0,0.00024403,2]
[327927876,1716653441000,-150.0,0.00024546,2]
[327927877,1716653441010,-155.47890587,0.00024616,2]
[327927878,1716653441019,-150.0,0.00024625,2]
[327927879,1716653441029,-155.47890587,0.00024631,2]
[327927880,1716653441039,-150.0,0.00024689,2]
[327927881,1716653441049,-150.0,0.00024703,2]
[327927882,1716653441060,-155.24505561,0.00024772,2]
[327927883,1716653441070,-151.19042308,0.00024775,2]
[327927884,1716653441080,-150.0,0.00024797,2]
[327927885,1716653441090,-150.0,0.00024797,2]
[327927886,1716653441099,-155.47890587,0.00024815,2]
[327927887,1716653441108,-159.67459836,0.00024824,2]
[327927888,1716653441118,-151.19042308,0.00024877,2]
[327927889,1716653441129,-150.0,0.00024879,2]
[327927890,1716653441138,-3689.27691557,0.00024889,2]
[327927891,1716653441148,-3689.27691551,0.00024889,2]
[327927892,1716653441157,-3689.27691551,0.00024889,2]
[327927893,1716653441167,-207.58824107,0.00024898,2]
[327927894,1716653441176,-309.85224901,0.00024898,2]
[327927895,1716653441186,-310.22425422,0.00024899,2]
[327927896,1716653441195,-162.63053772,0.00024899,2]
[327927897,1716653441205,-100000.0,0.000249,2]
[327927898,1716653441215,-500.0,0.000249,2]
[327927899,1716653441225,-1000.0,0.000249,2]
[327927900,1716653441234,-39182.283,0.000249,2]
[327927901,1716653441243,-150.0,0.00024924,2]
[327927902,1716653441252,-150.0,0.00024961,2]
[327927903,1716653441262,-1000.0,0.00024997,2]
[327927904,1716653441272,-1542.73847898,0.00024998,2]
[327927905,1716653441281,-1514.55494908,0.00024998,2]
[327927906,1716653441290,-307.68526441,0.00024998,2]
[327927907,1716653441300,-731.13604982,0.00024998,2]
[327927908,1716653441310,-195.85445237,0.00024999,2]
[327927909,1716653441319,-68126.91611697,0.00025,2]
[327927910,1716653441329,-445.6637425,0.00025,2]
[327927911,1716653441339,-257.24940323,0.00025,2]
[327927912,1716653441349,-299.11276263,0.00025,2]
[327927913,1716653441358,-500.0,0.00025,2]
[327927914,1716653441368,-1044.31301003,0.00025,2]
[327927915,1716653441379,-200.0,0.00025,2]
[327927916,1716653441388,-37497.0168183,0.00025,2]
[327927917,1716653441399,-1150.0,0.00025,2]
[327927918,1716653441409,-2000.0,0.00025,2]
[327927919,1716653441419,-200.0,0.00025,2]
[327927920,1716653441428,-171.74051,0.00025,2]
[327927921,1716653441439,-2000.0,0.00025,2]
[327927922,1716653441449,-200.0,0.00025,2]
[327927923,1716653441458,-152.24554885,0.00025079,2]
[327927924,1716653441468,-150.0,0.00025171,2]
[327927925,1716653441477,-457.23,0.00025205,2]
[327927926,1716653441487,-150.0,0.00025247,2]
[327927927,1716653441497,-2000.0,0.0002525,2]
[327927928,1716653441507,-200.0,0.0002525,2]
[327927929,1716653441516,-2000.0,0.0002525,2]
[327927930,1716653441526,-200.0,0.0002525,2]
[327927931,1716653441536,-155.47890587,0.00025275,2]
[327927932,1716653441545,-150.0,0.00025294,2]
[327927933,1716653441554,-150.0,0.00025295,2]
[327927934,1716653441564,-167.0,0.00025323,2]
[327927935,1716653441573,-155.24505561,0.00025328,2]
[327927936,1716653441585,-155.47890587,0.00025333,2]
[327927937,1716653441595,-150.0,0.00025337,2]
[327927938,1716653441604,-203.0,0.0002536,2]
[327927939,1716653441614,-150.0,0.00025374,2]
[327927940,1716653441624,-150.0,0.00025384,2]
[327927941,1716653441636,-155.47890587,0.00025413,2]
[327927942,1716653441645,-2000.0,0.00025503,2]
[327927943,1716653441654,-200.0,0.00025503,2]
[327927944,1716653441663,-2000.0,0.00025503,2]
[327927945,1716653441672,-200.0,0.00025503,2]
[327927946,1716653441683,-150.0,0.00025534,2]
[327927947,1716653441693,-150.0,0.00025576,2]
[327927948,1716653441702,-150.0,0.00025599,2]
[327927949,1716653441713,-150.0,0.00025613,2]
[327927950,1716653441722,-150.0,0.00025634,2]
[327927951,1716653441732,-152.24554885,0.00025664,2]
[327927952,1716653441742,-2000.0,0.00025758,2]
[327927953,1716653441751,-200.0,0.00025758,2]
[327927954,1716653441761,-2000.0,0.00025758,2]
[327927955,1716653441770,-151.19042308,0.00025762,2]
[327927956,1716653441780,-150.0,0.00025777,2]
[327927957,1716653441790,-150.0,0.00025808,2]
[327927958,1716653441799,-150.0,0.00025812,2]
[327927959,1716653441809,-150.0,0.00025842,2]
[327927960,1716653441819,-152.24554885,0.00025856,2]
[327927961,1716653441829,-150.0,0.00025877,2]
[327927962,1716653441839,-203.0,0.0002588,2]
[327927963,1716653441849,-150.0,0.00025994,2]
[327927964,1716653441858,-152.42219696,0.00026001,2]
[327927965,1716653441868,-151.19042308,0.00026012,2]
[327927966,1716653441880,-2000.0,0.00026015,2]
[327927967,1716653441889,-200.0,0.00026015,2]
[327927968,1716653441899,-2000.0,0.00026015,2]
[327927969,1716653441908,-150.0,0.00026042,2]
[327927970,1716653441918,-3689.27691551,0.00026055,2]
[327927971,1716653441928,-150.0,0.0002607,2]
[327927972,1716653441937,-154.36462273,0.00026096,2]
[327927973,1716653441947,-155.47890587,0.0002613,2]
[327927974,1716653441957,-150.0,0.00026145,2]
[327927975,1716653441966,-150.0,0.00026184,2]
[327927976,1716653441976,-150.0,0.0002619,2]
[327927977,1716653441986,-159.67459831,0.00026195,2]
[327927978,1716653441996,-155.47890587,0.00026213,2]
[327927979,1716653442005,-154.12115708,0.00026249,2]
[327927980,1716653442014,-150.0,0.00026257,2]
[327927981,1716653442024,-151.19042308,0.00026277,2]
[327927982,1716653442034,-150.0,0.00026284,2]
[327927983,1716653442044,-150.0,0.0002629,2]
[327927984,1716653442054,-203.0,0.0002639,2]
[327927985,1716653442063,-150.0,0.00026421,2]
[327927986,1716653442073,-166.0976842,0.00026493,2]
[327927987,1716653442083,-160.25,0.00026526,2]
[327927988,1716653442092,-357.0,0.00026538,2]
[327927989,1716653442102,-150.0,0.00026598,2]
[327927990,1716653442306,-150.0,0.00026799,2]
[327927991,1716653442316,-881.27,0.00026877,2]
[327927992,1716653442326,-831.98,0.00026877,2]
[327927993,1716653442335,-1193.93,0.00026879,2]
[327927994,1716653442345,-151.19042308,0.0002688,2]
[327927995,1716653442354,-150.0,0.00026881,2]
[327927996,1716653442363,-203.0,0.0002691,2]
[327927997,1716653442373,-152.24554885,0.00026928,2]
[327927998,1716653442383,-150.0,0.00026933,2]
[327927999,1716653442394,-174.24442615,0.00026945,2]
[327928000,1716653442405,-48900.76086555,0.00026955,2]
[327928001,1716653442422,-434.88733172,0.00026955,2]
[327928002,1716653442438,-3833.50000002,0.00026955,2]
[327928003,1716653442449,-325.93999993,0.00026955,2]
[327928004,1716653442461,-5330.0,0.00026955,2]
[327928013,1716653443632,-2185.16867197,0.00026955,2]
[327928014,1716653443643,-3456.80982,0.00026955,2]
[327928015,1716653443654,-766.24657314,0.00026955,2]
[327928017,1716653444259,-41701.89471581,0.00026955,2]
[327928018,1716653444270,-99068.06322186,0.00026955,2]
[327928019,1716653444279,-1000.0,0.00026973,2]
[327928020,1716653444288,-150.0,0.00026973,2]
[327928021,1716653444297,-150.0,0.0002699,2]
[327928022,1716653444306,-150.0,0.00027,2]
[327928023,1716653444315,-151.19042308,0.00027013,2]
[327928024,1716653444324,-150.0,0.00027017,2]
[327928025,1716653444333,-150.0,0.00027033,2]
[327928026,1716653444343,-155.15347714,0.00027056,2]
[327928027,1716653444353,-150.0,0.00027084,2]
[327928028,1716653444362,-4905.6,0.00027093,2]
[327928029,1716653444371,-150.0,0.00027159,2]
[327928030,1716653444382,-4804.25,0.00027168,2]
[327928031,1716653444391,-150.0,0.00027169,2]
[327928032,1716653444405,-167.0,0.00027253,2]
[327928033,1716653444415,-150.0,0.00027287,2]
[327928034,1716653444425,-151.19042308,0.00027324,2]
[327928035,1716653444434,-166.66666667,0.00027356,2]
[327928036,1716653444444,-150.0,0.0002736,2]
[327928037,1716653444453,-150.0,0.00027396,2]
[327928038,1716653444462,-2000.0,0.000274,2]
[327928039,1716653444472,-213.7845,0.000274,2]
[327928040,1716653444482,-175.08752517,0.000274,2]
[327928041,1716653444493,-10000.0,0.000274,2]
[327928042,1716653444503,-1212.75863093,0.000274,2]
[327928043,1716653444513,-184.92665724,0.000274,2]
[327928044,1716653444523,-530.96099582,0.000274,2]
[327928045,1716653444533,-171.4361921,0.000274,2]
[327928046,1716653444543,-4714.17278067,0.000274,2]
[327928047,1716653444553,-203.0,0.0002742,2]
[327928048,1716653444563,-155.47890587,0.00027449,2]
[327928049,1716653444572,-150.0,0.00027459,2]
[327928050,1716653444583,-3689.27691551,0.00027479,2]
[327928051,1716653444593,-151.1,0.0002749,2]
[327928052,1716653444603,-174.24442615,0.0002749,2]
[327928053,1716653444614,-151.1,0.0002749,2]
[327928054,1716653444624,-151.1,0.0002749,2]
[327928055,1716653444635,-151.1,0.0002749,2]
[327928056,1716653444644,-151.1,0.0002749,2]
[327928057,1716653444654,-151.1,0.0002749,2]
[327928058,1716653444663,-151.1,0.0002749,2]
[327928059,1716653444673,-151.1,0.0002749,2]
[327928060,1716653444683,-158.65950169,0.00027498,2]
[327928061,1716653444693,-12562.49897842,0.00027498,5]
[327928062,1716653444703,-2502.85133125,0.00027498,2]
[327928063,1716653444713,-1400.0,0.00027498,3]
[327928064,1716653444722,-1227.82126936,0.00027498,2]
[327928065,1716653444732,-2717.0722721,0.00027499,2]
[327928066,1716653444741,-257.64229094,0.00027499,2]
[327928067,1716653444751,-150.0,0.00027499,2]
[327928068,1716653444760,-150.0,0.00027499,2]
[327928069,1716653444770,-150.0,0.00027499,2]
[327928070,1716653444779,-150.0,0.00027499,2]
[327928071,1716653444789,-152119.02450202,0.000275,2]
[327928072,1716653444799,-4956.96,0.000275,2]
[327928073,1716653444809,-1108162.88333804,0.000275,5]
[327928076,1716653446213,-173.3150501,0.00024898,2]
[327928077,1716653446223,-182.78194977,0.000275,5]
[327928078,1716653446234,-670.78293135,0.000275,5]
[327928079,1716653446245,-28368.18261475,0.000275,5]
[327928080,1716653446323,-1514.55494908,0.000275,5]
[327928081,1716653446435,-348531.5341109,0.000275,5]
[327928082,1716653446448,-505.98786589,0.000275,5]
[327928083,1716653446492,-2851.30910176,0.000275,5]
[327928084,1716653446549,-34053.51950001,0.000275,5]
[327928085,1716653446561,-4484.91574535,0.000275,5]
[327928086,1716653446572,-3345.05,0.000275,5]
[327928087,1716653446611,-1319.70824712,0.000275,5]
[327928088,1716653446626,-3412.6,0.000275,5]
[327928090,1716654396164,-155.0,0.00013758,2]
[327928091,1716654396184,-57.2706887,0.00013759,2]
[327928107,1716654632356,-206.49,0.00013973,2]
[327928109,1716654632366,-157.65,0.00013973,2]
[327928111,1716654632375,-251.11441392,0.00017259,2]
[327928116,1716654632640,-333.00794755,0.00017259,2]
[327928117,1716654632652,-4499.15196707,0.00017259,2]
[327928118,1716654632662,-357.0,0.00018988,2]
[327928119,1716654632671,-2465.89352677,0.00021,2]
[327928120,1716654632683,-45.40931632,0.00021,2]
[327928121,1716654632695,-150.99,0.00021,2]
[327928122,1716654632704,-3197.82,0.00021,2]
[327928124,1716654632713,-499.99,0.00021,2]
[327928126,1716654632723,-318.91,0.00021,2]
[327928128,1716654632732,-357.0,0.00021988,2]
[327928130,1716654632742,-157.65,0.00022174,2]
[327928132,1716654632751,-151.21301959,0.00022223,2]
[327928134,1716654632760,-217.36,0.00022574,2]
[327928136,1716654632769,-151.21301959,0.0002265,2]